Cogmind - Beta 14 *** ADVENTURER MODE // 2024.10.02 @ 16:44:01 Player: Knightshade Result: Destroyed by PF-7P2(R) with Subdweller Machine Gun Performance ------------- Evolutions (0) 0 Regions Visited (3) 600 Robots Destroyed (43) 215 Value Destroyed (957) 957 Prototype IDs (4) 80 Alien Tech Used (0) 0 Bonus (76) 76 TOTAL SCORE: 1928 Bonus ------- Follower Combat Kills 95 Friendly Fire -19 Cogmind --------- Core Integrity 0/250 Matter 210/300 Energy 250/250 System Corruption 0% Temperature Cool (0) Movement Core (1550) Ox30 Location -10/Subcaves Parts ------- > --- POWER (1) -------- Ion Engine > --- PROPULSION (2) --- Light Treads Subdweller Monowheel > --- UTILITY (2) ------ Huge Storage Unit Seismic Detector > --- WEAPON (2) ------- Beam Cannon Makeshift Sword > --- INVENTORY (25) --- Ion Engine Light Ion Engine Reinforced Ion Engine Subdweller Power Source Subdweller Power Source Light Nuclear Core Light Treads Light Treads Subdweller Monowheel Medium Storage Unit Structural Scanner Experimental Sensor Array ECM Suite Light Armor Plating Subdweller Laser Beam Cannon Barrage Gun Grenade Launcher Grenade Launcher Rocket Launcher Datajack Makeshift Spear Signal Generator Peak State ------------ > --- POWER ------------ Light Ion Engine > --- PROPULSION ------- Light Treads Wheel > --- UTILITY ---------- Huge Storage Unit Experimental Sensor Array > --- WEAPON ----------- Beam Cannon Beam Cannon > --- INVENTORY -------- Ion Engine Ion Engine Light Ion Engine Reinforced Ion Engine Light Nuclear Core Light Treads Light Treads Wheel Armored Wheel Medium Storage Unit Structural Scanner Seismic Detector ECM Suite Light Armor Plating Grenade Launcher Grenade Launcher Rocket Launcher Datajack Makeshift Spear Signal Generator [Rating: 18] Favorites ----------- Power Light Ion Engine Engine Light Ion Engine Power Core Light Nuclear Core Propulsion Light Treads Treads Light Treads Wheel Wheel Utility Huge Storage Unit Device Seismic Detector Storage Huge Storage Unit Protection Light Armor Plating Weapon Assault Rifle Energy Cannon Beam Cannon Ballistic Gun Assault Rifle Launcher Rocket Launcher Slashing Weapon Makeshift Sword Piercing Weapon Makeshift Spear Build | -11 -10 -10 -10 ------- Run | Yrd Mat Min Sub Slots Evolved . | . . . . Power . | . . . . Propulsion . | . . . . Utility . | . . . . Weapon . | . . . . Parts Attached 43 | 7 14 . 22 Power 4 | 1 1 . 2 Engine 3 | 1 1 . 1 Core 1 | . . . 1 Reactor . | . . . . Propulsion 14 | 2 7 . 5 Treads 8 | 2 5 . 1 Leg . | . . . . Wheel 6 | . 2 . 4 Hover . | . . . . Flight . | . . . . Utility 10 | 2 3 . 5 Device 6 | 1 1 . 4 Storage 3 | 1 2 . . Processor . | . . . . Hackware . | . . . . Protection 1 | . . . 1 Artifact . | . . . . Weapon 15 | 2 3 . 10 Energy Gun . | . . . . Energy Cannon 4 | . . . 4 Ballistic Gun 5 | 2 3 . . Ballistic Cannon . | . . . . Launcher 3 | . . . 3 Special Weapon . | . . . . Impact Weapon . | . . . . Slashing Weapon 2 | . . . 2 Piercing Weapon 1 | . . . 1 Special Melee Weapon . | . . . . Unidentified Prototypes 1 | . . . 1 Parts Lost 7 | . 1 . 6 Power 2 | . . . 2 Propulsion 5 | . 1 . 4 Utility . | . . . . Weapon . | . . . . Highest Loss Streak 1 | . 1 . 1 To Critical Strikes 1 | . . . 1 Average Slot Usage (%) 98 | . 98 100 97 Engine 11 | . 13 14 8 Core 2 | . . . 5 Treads 14 | . 17 14 11 Wheel 12 | . 9 14 14 Device 13 | . 13 14 13 Storage 14 | . 14 14 14 Energy Cannon 7 | . . . 16 Ballistic Gun 15 | . 27 28 . Launcher 3 | . . . 7 Slashing Weapon 1 | . . . 2 Peak Build Rating 18 | 7 9 11 18 Average Rating 10 | 5 7 9 13 On Entrance 6 | . 7 9 11 Naked Turns . | . . . . Heaviest Build 93 | 12 87 87 93 Greatest Support 40 | 40 40 10 22 Greatest Overweight (x) 30 | . 8 8 30 Average Overweight (x) 6 | . 2 8 7 Largest Inventory Capacity 25 | 8 25 25 25 Average Capacity 22 | 7 17 25 25 Most Carried 25 | 5 19 22 25 Average Carried 18 | 3 10 20 23 Final Capacity 25 | 8 25 25 25 Final Carried 23 | 4 18 22 23 Class Distribution -------------------- 91% | Mutant 8% | Scavenger-Mutant Dominant Class ---------------- Mutant | -10/Materials Mutant | -10/Mines Mutant | -10/Subcaves Resources | -11 -10 -10 -10 ----------- Run | Yrd Mat Min Sub Matter Collected 1025 | 249 357 77 342 Remotely . | . . . . Salvage Created 1142 | 64 491 87 500 Parts 83 | 8 32 3 40 Haulers Intercepted 2 | . 2 . . Recyclers Shooed 1 | . 1 . . Parts Field Recycled . | . . . . Retrieved Matter . | . . . . Parts Self-Destructed 19 | . . . 19 Prevented . | . . . . Kills | -11 -10 -10 -10 ------- Run | Yrd Mat Min Sub Combat Hostiles Destroyed 33 | . 10 3 20 Guns 13 | . 10 3 . Cannons 8 | . . . 8 AOE 11 | . . . 11 Classes Destroyed 10 | 1 6 . 3 Worker 1 | . 1 . . Tunneler 4 | 4 . . . Hauler 2 | . 2 . . Recycler 1 | . 1 . . Watcher 2 | . 2 . . Swarmer 15 | . 6 2 7 Grunt 6 | . 4 1 1 Artisan 1 | . . . 1 Cobbler 1 | . . . 1 Subdweller 12 | . . . 12 Best Kill Streak 4 | 1 3 2 4 Combat Bots Only 4 | . 3 2 4 Max Kills in Single Turn 3 | 1 1 1 3 Gunslinging . | . . . . Exploded 2 | . . . 2 Melee . | . . . . Uniques/NPCs Destroyed . | . . . . Combat | -11 -10 -10 -10 -------- Run | Yrd Mat Min Sub Hostile Shots Fired 114 | . 33 13 68 Missed 38 | . 7 4 27 Damage Taken 1060 | . 216 65 779 Core 259 | . 32 12 215 Absorbed by Shields . | . . . . Ignored by Resistances 308 | . 65 23 220 Core Remaining (%) 100 | 100 . . . Volleys Fired 135 | 9 52 10 64 Largest 2 | 2 2 2 2 Hottest 120 | 40 40 40 120 Shots Fired 262 | 18 98 20 126 Gun 136 | 18 98 20 . Cannon 105 | . . . 105 Launcher 21 | . . . 21 Special . | . . . . Kinetic 136 | 18 98 20 . Thermal 105 | . . . 105 Explosive 21 | . . . 21 Electromagnetic . | . . . . Robot Hit Streak 22 | 10 13 6 22 Robot Miss Streak 5 | 2 5 2 2 Penetration Max . | . . . . Secondary Targets . | . . . . Shots Hit Robots 159 | 12 62 11 74 Core Hits 69 | 5 29 5 30 Critical Kills 2 | . 1 . 1 Critical Parts Destroyed . | . . . . Critical Strikes 3 | . 1 . 2 Meltdown 1 | . . . 1 Destroy 1 | . 1 . . Impale 1 | . . . 1 Melee Attacks 6 | . . . 6 Impact . | . . . . Slashing 3 | . . . 3 Piercing 3 | . . . 3 Sneak Attacks 5 | . . . 5 Combat Hostiles . | . . . . Follow-up Attacks . | . . . . Damage Inflicted 3520 | 129 649 112 2630 Guns 890 | 129 649 112 . Cannons 940 | . . . 940 Explosions 1349 | . . . 1349 Melee 341 | . . . 341 Ramming . | . . . . Kinetic 890 | 129 649 112 . Thermal 940 | . . . 940 Explosive 1349 | . . . 1349 Electromagnetic . | . . . . Impact . | . . . . Slashing 219 | . . . 219 Piercing 122 | . . . 122 Highest Corruption . | . . . . Average Corruption . | . . . . Corruption Purged . | . . . . Corruption Blocked . | . . . . Overload Shots . | . . . . Overflow Damage 157 | . . . 157 Projectiles 7 | . . . 7 Explosions 71 | . . . 71 Melee 79 | . . . 79 Knockbacks . | . . . . Impact . | . . . . Kinetic . | . . . . Secondary . | . . . . Self-Inflicted Damage 123 | . . . 123 Shots 7 | . . . 7 Rammed . | . . . . Targets Rammed . | . . . . Kicked . | . . . . Crushed . | . . . . Highest Temperature 60 | . 27 9 60 Average Temperature 20 | . 11 7 25 Received Heat Transfer 264 | . 117 33 114 Siege Activations . | . . . . Robots Corrupted . | . . . . Combat Hostiles . | . . . . Parts Fried . | . . . . Impact Corruptions . | . . . . Robots Melted 1 | . . . 1 Combat Hostiles 1 | . . . 1 Parts Melted . | . . . . Heat Transferred 1998 | . . . 1998 Parts Sabotaged . | . . . . Parts Stolen . | . . . . Parts Stripped . | . . . . Power Chain Reactions . | . . . . Alert | -11 -10 -10 -10 ------- Run | Yrd Mat Min Sub Peak Influence 111 | 20 111 80 . Initial 24 | . 11 24 . Average 34 | 8 56 16 . Maximum Alert Level . | . . . . Low Security (%) 100 | 100 100 100 . Level 1 . | . . . . Level 2 . | . . . . Level 3 . | . . . . Level 4 . | . . . . Level 5 . | . . . . High Security . | . . . . Max Security . | . . . . Squads Dispatched . | . . . . Investigation . | . . . . Extermination . | . . . . Reinforcement . | . . . . Assault . | . . . . Garrison . | . . . . Intercept . | . . . . Searches Triggered . | . . . . Construction Impeded . | . . . . Haulers Reinforced . | . . . . Active Scanning Responses . | . . . . Cargo Convoy Interrupts . | . . . . Stealth | -11 -10 -10 -10 --------- Run | Yrd Mat Min Sub Distress Signals 1 | . 1 . . Communications Jammed . | . . . . Distress Signals . | . . . . Times Spotted 50 | . 21 5 24 Peak Tracking Total 6 | . 3 3 6 Tactical Retreats 3 | . 2 . 1 Traps | -11 -10 -10 -10 ------- Run | Yrd Mat Min Sub Traps Triggered 5 | . 5 . . Indirectly . | . . . . Trap Hack Attempts . | . . . . Triggered . | . . . . Disarmed . | . . . . Reprogrammed . | . . . . Reused . | . . . . Traps Extracted . | . . . . Installed . | . . . . Triggered . | . . . . Machines | -11 -10 -10 -10 ---------- Run | Yrd Mat Min Sub Machines Disabled . | . . . . Max in Single Turn . | . . . . Machines Repaired . | . . . . Machines Dismantled . | . . . . Machines Sabotaged . | . . . . Overloaded Fab Kills . | . . . . Hacking | -11 -10 -10 -10 --------- Run | Yrd Mat Min Sub Machines Accessed 12 | . 10 1 1 Terminals 9 | . 8 1 . Fabricators . | . . . . Repair Stations . | . . . . Recycling Units 2 | . 2 . . Scanalyzers . | . . . . Garrison Access . | . . . . Total Hacks 42 | . 33 4 5 Successful 24 | . 19 . 5 Failed 18 | . 14 4 . Catastrophic 2 | . 1 1 . Database Lockouts . | . . . . Manual 25 | . 21 4 . Terminals 32 | . 28 4 . Fabricators . | . . . . Repair Stations . | . . . . Recycling Units 5 | . 5 . . Scanalyzers . | . . . . Garrison Access . | . . . . Terminal Hacks 15 | . 10 . 5 Record 5 | . . . 5 Prototype ID Bank 2 | . 2 . . Branch Access Points 1 | . 1 . . Terminal Index 1 | . 1 . . Locate Traps 2 | . 2 . . Hauler Manifests 1 | . 1 . . Registered Components 1 | . 1 . . Zone Layout 2 | . 2 . . Fabricator Hacks . | . . . . Repair Station Hacks . | . . . . Recycling Unit Hacks 4 | . 4 . . Report Inventory 3 | . 3 . . Retrieve Components 1 | . 1 . . Scanalyzer . | . . . . Garrison Access Hacks . | . . . . Unauthorized Hacks 5 | . 5 . . Terminals 5 | . 5 . . Botnet 5 | . 5 . . Fabricators . | . . . . Repair Stations . | . . . . Recycling Units . | . . . . Scanalyzers . | . . . . Garrison Access . | . . . . Data Cores Recovered . | . . . . Used . | . . . . Hacking Detections 10 | . 9 1 . Full Trace Events 1 | . 1 . . Feedback Events . | . . . . Feedback Blocked . | . . . . Robot Schematics Acquired . | . . . . Robots Built . | . . . . Authchips . | . . . . Time . | . . . . Total Robot Build Rating . | . . . . Part Schematics Acquired . | . . . . Parts Built . | . . . . Authchips . | . . . . Time . | . . . . Total Part Build Rating . | . . . . Parts Repaired . | . . . . Time . | . . . . Parts Recycled . | . . . . Recycled Matter . | . . . . Retrieved Matter . | . . . . Retrieved Components 10 | . 10 . . Parts Scanalyzed . | . . . . Part Schematics Acquired . | . . . . Parts Damaged . | . . . . Bothacking | -11 -10 -10 -10 ------------ Run | Yrd Mat Min Sub Used RIF Installer . | . . . . Robots Hacked . | . . . . Non-combat . | . . . . Combat . | . . . . Robot Hacks Applied . | . . . . Relay Couplers Released . | . . . . Fabnet Peak Effective % . | . . . . Robots Rewired . | . . . . Allies Hacked . | . . . . Hacks Repelled . | . . . . Allies | -11 -10 -10 -10 -------- Run | Yrd Mat Min Sub Total Allies 5 | . . 5 . Largest Group 5 | . . 5 5 Highest-Rated Group 78 | . . 78 78 Highest-Rated Ally 31 | . . 31 31 Total Orders . | . . . . Ally Attacks 21 | . . 10 11 Total Damage 146 | . . 49 97 Kills 4 | . . 2 2 Allies Corrupted . | . . . . Allies Melted . | . . . . Intel | -11 -10 -10 -10 ------- Run | Yrd Mat Min Sub Robot Analysis Total . | . . . . Derelict Logs Recovered 2 | . . 2 . Drone Launches . | . . . . Drone Recoveries . | . . . . Exploration | -11 -10 -10 -10 ------------- Run | Yrd Mat Min Sub Turns Passed 6029 | 251 1684 1532 2562 Spaces Moved 2576 | 137 748 676 1015 Core 37 | 9 17 . 11 Treads 310 | 128 182 . . Legs . | . . . . Wheels 2229 | . 549 676 1004 Hover . | . . . . Flight . | . . . . Fastest Speed 50 | 50 100 200 145 Average Speed 189 | 152 154 200 213 Slowest Speed 1550 | 160 200 200 1550 Overloaded Moves . | . . . . Propulsion Burnouts . | . . . . Robots Hopped . | . . . . Cave-ins Triggered . | . . . . Exploration Rate (%) 68 | 7 99 99 69 Regions Visited 3 Branch Regions 2 Pre-discovered Areas 2 | . . 1 1 Known Exits Taken 1 | . 1 . . Unknown Exits Taken 2 | 1 . 1 . Scrap Searched 1 | . . 1 . Spaces Dug . | . . . . Terrain Destroyed 137 | . . . 137 Melee . | . . . . Projectile . | . . . . AOE 137 | . . . 137 Terrain Rammed . | . . . . Walls Destroyed . | . . . . Machines Disabled . | . . . . Actions | -11 -10 -10 -10 --------- Run | Yrd Mat Min Sub Total 3462 | 163 1192 839 1268 Wait 641 | . 345 150 146 Move 2573 | 136 747 675 1015 Hop . | . . . . Pick Up 55 | 11 30 4 10 Fast Attach . | . . . . Attach 25 | 7 12 . 6 Detach . | . . . . Swap 18 | . 2 . 16 Drop 7 | . 4 . 3 Fire 135 | 9 52 10 64 Melee 6 | . . . 6 Ram . | . . . . Kick . | . . . . Crush . | . . . . Escape Stasis . | . . . . Rewire 2 | . . . 2 Trap . | . . . . Miscellaneous . | . . . . Route ------- -11/Scrapyard -10/Materials (discovered 5 exits: [*Mat x3] / *Min x2) -10/Mines (discovered 4 exits: [*Mat x2] / [*Exi] / *Sub) -10/Subcaves (discovered 2 exits: [*Mat] / Rec) History --------- Turn | Location | Event 6 | -11/Scrapyard | Discovered new exit (range 15) 252 | -11/Scrapyard | Entered Materials 310 | -10/Materials | Build established: Mutant 637 | -10/Materials | Discovered new exit (range 3) 1172 | -10/Materials | Discovered new exit (range 10) 1278 | -10/Materials | Discovered new exit (range 5) 1412 | -10/Materials | Discovered new exit (range 3) 1424 | -10/Materials | Identified exit to Mines 1637 | -10/Materials | Discovered new exit (range 6) 1936 | -10/Materials | Entered Mines 2046 | -10/Mines | Discovered new exit (range 10) 2053 | -10/Mines | Received a Rocket Launcher from a helpful Derelict 2393 | -10/Mines | Assisted by bots powering up and referring to "LRC-V3" 2486 | -10/Mines | Found a damaged Exp. Sensor Array with a note attached 2490 | -10/Mines | Found Prototype Device 2515 | -10/Mines | Discovered new exit (range 9) 2618 | -10/Mines | Deemed a non-threat by the Exiles lab entrance 2618 | -10/Mines | Discovered new exit (range 5) 2702 | -10/Mines | A weapon hastily lodged in a ceiling crevice suddenly fell to the ground 3112 | -10/Mines | Met a Derelict testing a Signal Generator 3119 | -10/Mines | Found Signal Generator 3426 | -10/Mines | Discovered new exit (range 6) 3468 | -10/Mines | Entered Subcaves 3468 | -10/Subcaves | Accompanied by 5 allies 3469 | -10/Subcaves | Identified exit to Recycling 3473 | -10/Subcaves | Led the pair of lost Derelicts to an unsafe place 3481 | -10/Subcaves | Identified Exp. Sensor Array 4210 | -10/Subcaves | Shifting Twisted Machinery released Sub. Power Source 4270 | -10/Subcaves | Shifting Twisted Machinery released Sub. Shrapnel Launcher 5051 | -10/Subcaves | Disturbed a concealed Subdweller 5052 | -10/Subcaves | Core integrity fell below 50% 5339 | -10/Subcaves | Discovered new exit (range 15) 5343 | -10/Subcaves | Visited Clippyterm 5350 | -10/Subcaves | Learned location of Deep Caves (-7) 5350 | -10/Subcaves | Learned Factory emergency access door positions 5390 | -10/Subcaves | Ambushed by Subdwellers from Twisted Machinery 5438 | -10/Subcaves | A swath of the cavern ceiling suddenly collapsed 5606 | -10/Subcaves | Core integrity fell below 20% 5904 | -10/Subcaves | Build established: Scavenger-Mutant 6030 | -10/Subcaves | Destroyed by PF-7P2(R) with Subdweller Machine Gun Last Messages --------------- A swath of the cavern ceiling suddenly collapses. 05479_ Sneak attack on ME-UI8(O). 05479_ Destroyed Wheel. 05564_ Sneak attack on GW-GVL(u). 05564_ Destroyed Wheel. 05564_ Destroyed Multitool. 05593_ T7-N90(R) destroyed. 05596_ Wheel destroyed. 05599_ C4-BR0(R) affixes Scrap Shield Fragment to Scrap Shield. 05611_ C4-BR0(R) destroyed. 05618_ Subatomizers dissect the Disposable Heat Sink. 05618_ Acquired 48 matter. 05620_ Acquired 51 matter. 05747_ Subatomizers dissect the Sub. Optics. 05830_ Sneak attack on GW-GVL(u). 05830_ GW-GVL(u) cries out in pain. 05830_ GW-GVL(u) destroyed. 05832_ Acquired 26 matter. 05838_ Sub. Monowheel shoots sparks and powers down. 06015_ PF-7P2(R): "OHNO!" Map ----- +----------------------------------------------------+ | ### #" ## ####?### # # | | ### &!"""""" ###??#### ## ##### % ##### | | ##"" *%] !% ########## ## #### [ #### | | #""" ##! % "########## # ### #### ##??? | | ##"####"" ! "### ### #### ##??? | | ########""" "##### #### ### ##??? | | ####?#######"####### # #### ## ##??? | | ??????##########?### ## # ## ### ##??? | | ??????????#####??### #### ##??? | | ?????????????????### ###### ##??? | | ?????????????????## # ##?? ????? | | ?????????????????## ##### &###??? ????? | | ?????????????????## ######## ####?? % ????? | | ?????????????????### ####### ###?? ????? | | ?????????????????### ### ## #? " "????? | | ??????????????????## ## ## ##???? ?????? | | ??????????????????## ######????>?????? | | ??????????????????## ######??????????? | | ??????????????????## ###??????????????? | | ??????????????????###### ####??????????????? | | ??????????????????################???????????????? | | ????????????????????##############???????????????? | | ???????????????????##< <<^$ $$##??????????????? | | ???????????????????#< < < $ #??????????????? | | ???????????????????# << << $ $#??????????????? | | ???????????????????#<< @ $ $ #??????????????? | | ???????????????????#< < R<<$ <<<#??????????????? | | ???????????????????#<< <##<<<<<####??????????????? | | ???????????????????#< < ########?????????????????? | | ???????????????????#<< ""#######?????????????????? | | ???????????????????##<" # ##?????????????????? | | ????????????????????#" * ###?????????????????? | | ??????????????????#### ## "####???????????????? | | ??????????????????########" "#######?????#####??? | | ??????????????????##"### " ######??########?? | | ??????????????????##""""" "###### ###?? | | ??????????????????## "##" " "#### " ## " | | ????????????#########"" ! # # " | | ???????????########### ## """"""" # | | ??????????#### ## ###! ##### """ " # | | ??????????### "" ## ##### ## # " """ | | ??????????## "" ##### ##### " """ # | | ??????????## ## ##### """"""" ## | | ????????##### # "" ###??## ? #? | | ????????##### " ## ## # #######????# ####??? | | ???????### "" ################??????###?????? | | ??????#### # "### ############??????????????????? | | ? ####### ######% ##????????????????????????????? | | ######## ######## ##????????????????????????????? | | ### ### #####?## ##????????????????????????????? | +----------------------------------------------------+ Best States ------------- Heat Dissipation 25 Energy Generation 14 Energy Capacity 250 Matter Stores 300 Matter Capacity 300 Sight Range 16 Terrain Scan Density 10 Armor Coverage 150 Resistance: KI 20 Resistance: TH 20 Resistance: EX 20 Resistance: EM 20 Resistance: I 20 Resistance: S 20 Resistance: P 20 Evasion (%) 40 Recoil Reduction 2 Offensive Hacking 10 Item Schematics ----------------- None Robot Schematics ------------------ None Fabricated ------------ Nothing Alien Tech Used ----------------- None Achievements -------------- None Challenges ------------ None Game ------ Seed TrapSwordAirjet Manual? 0 Play Time 00:27:22 Cumulative 94.9 hours Start 2024.10.02 @ 16:16:58 End 2024.10.02 @ 16:44:01 Sessions 1 Manual Loads 0 Difficulty Adventurer Special Mode None Game No. 69 Rogue 0 Adventurer 69 Explorer 0 Win Type - Total 0 Types 0/0/0/0/0/0/0/0/0 Lore% 22 Gallery% 43 Achievement% 36 Wizard Run 0 Options --------- Layout 0 ASCII 0 Keyboard 0 Movement Mouse Keybinds 0 Fullscreen 1 Font 18/SmallcapsGlow Map View 76x50 Zoom Use 0% Tactical HUD 1 Map Filters NONE Filters NONE Steam 1 RUN: c138a270-e95c-45ec-bd3a-43458e2eca46